bitfinex/quotes_BTCUSD_20251007
["timestamp","ask_amount","ask_price","bid_price","bid_amount"]
[1759828854041,2.41503665,124150.0,124140.0,0.096]
[1759828854285,3.06247665,124150.0,124140.0,0.096]
[1759828855335,3.08416794,124150.0,124140.0,0.096]
[1759828855672,1.43438618,124150.0,124140.0,0.096]
[1759828855913,3.07616794,124150.0,124140.0,0.096]
[1759828857001,2.42872794,124150.0,124140.0,0.096]
[1759828857210,3.07612794,124150.0,124140.0,0.096]
[1759828859852,3.07623208,124150.0,124140.0,0.096]
[1759828861071,3.08423208,124150.0,124140.0,0.096]
[1759828861715,3.08415208,124150.0,124140.0,0.096]
[1759828862519,3.08411208,124150.0,124140.0,0.096]
[1759828863288,3.52791208,124150.0,124140.0,0.096]
[1759828863843,3.52794247,124150.0,124140.0,0.096]
[1759828864901,1.85622513,124150.0,124140.0,0.096]
[1759828865109,2.16847513,124150.0,124140.0,0.096]
[1759828865313,2.17145513,124150.0,124140.0,0.096]
[1759828865514,2.67262601,124150.0,124140.0,0.096]
[1759828866547,2.67268692,124150.0,124140.0,0.096]
[1759828866765,2.75268372,124150.0,124140.0,0.096]
[1759828868007,2.75268558,124150.0,124140.0,0.096]
[1759828868615,2.30888558,124150.0,124140.0,0.096]
[1759828868816,2.30888528,124150.0,124140.0,0.096]
[1759828869034,1.80770615,124150.0,124140.0,0.096]
[1759828869309,1.30654352,124150.0,124140.0,0.096]
[1759828869511,1.80770615,124150.0,124140.0,0.096]
[1759828870316,1.80766615,124150.0,124140.0,0.096]
[1759828870731,1.72390615,124150.0,124140.0,0.096]
[1759828870937,1.80766615,124150.0,124140.0,0.096]
[1759828871085,1.83185963,124150.0,124140.0,0.096]
[1759828871703,1.330697,124150.0,124140.0,0.096]
[1759828871913,1.83185963,124150.0,124140.0,0.096]
[1759828874137,2.33302226,124150.0,124140.0,0.096]
[1759828874782,2.32502226,124150.0,124140.0,0.096]
[1759828876014,2.34674792,124150.0,124140.0,0.096]
[1759828876807,2.35474792,124150.0,124140.0,0.096]
[1759828877210,2.79854792,124150.0,124140.0,0.096]
[1759828877459,2.77682226,124150.0,124140.0,0.096]
[1759828877667,2.33302226,124150.0,124140.0,0.096]
[1759828877924,2.35474792,124150.0,124140.0,0.096]
[1759828878134,2.35474541,124150.0,124140.0,0.096]
[1759828878315,2.33301975,124150.0,124140.0,0.096]
[1759828878511,2.02085975,124150.0,124140.0,0.096]
[1759828878713,2.66805975,124150.0,124140.0,0.096]
[1759828879505,2.02085975,124150.0,124140.0,0.096]
[1759828879700,2.66813975,124150.0,124140.0,0.096]
[1759828881650,2.58433975,124150.0,124140.0,0.096]
[1759828881847,2.66809975,124150.0,124140.0,0.096]
[1759828882639,0.57446842,124140.0,124130.0,0.00019924]
[1759828882845,6.34381412,124140.0,124130.0,0.00019924]
[1759828883085,0.1912733,124130.0,124120.0,0.02251233]
[1759828883307,1.47330157,124130.0,124120.0,0.02251233]
[1759828883632,1.81536157,124130.0,124120.0,0.0227116]
[1759828883954,1.83955848,124130.0,124120.0,0.0227116]
[1759828884110,1.92155528,124130.0,124120.0,0.0417116]
[1759828884318,1.91963321,124130.0,124120.0,0.0227116]
[1759828884703,1.92163321,124130.0,124120.0,0.0227116]
[1759828885776,1.92363321,124130.0,124120.0,0.0227116]
[1759828886086,1.92163321,124130.0,124120.0,0.0227116]
[1759828886294,1.42047058,124130.0,124120.0,0.0227116]
[1759828886522,1.99566995,124130.0,124120.0,0.0227116]
[1759828887052,1.49450732,124130.0,124120.0,0.0227116]
[1759828887286,1.99566995,124130.0,124120.0,0.0227116]
[1759828888970,1.49450732,124130.0,124120.0,0.0227116]
[1759828889180,1.99566995,124130.0,124120.0,0.0227116]
[1759828890396,2.04402995,124130.0,124120.0,0.0227116]
[1759828891025,1.54278732,124130.0,124120.0,0.0227116]
[1759828891195,2.1126146,124130.0,124120.0,0.0227116]
[1759828891394,2.12770074,124130.0,124120.0,0.0227116]
[1759828894083,2.44190874,124130.0,124120.0,0.0227116]
[1759828894438,2.12990874,124130.0,124120.0,0.0227116]
[1759828894646,2.79440531,124130.0,124120.0,0.0227116]
[1759828895914,2.78685924,124130.0,124120.0,0.0227116]
[1759828896113,2.79439703,124130.0,124120.0,0.0227116]
[1759828897078,3.29555966,124130.0,124120.0,0.0227116]
[1759828897701,2.79439703,124130.0,124120.0,0.0227116]
[1759828900603,2.79438927,124130.0,124120.0,0.0227116]
[1759828903419,2.79438819,124130.0,124120.0,0.0227116]
[1759828905150,3.29555082,124130.0,124120.0,0.0227116]
[1759828906966,3.29555051,124130.0,124120.0,0.0227116]
[1759828907586,3.29554589,124130.0,124120.0,0.0227116]
[1759828909843,3.28047242,124130.0,124120.0,0.0227116]
[1759828910002,2.64842616,124130.0,124120.0,0.0227116]
[1759828910207,2.79434353,124130.0,124120.0,0.0227116]
[1759828912899,2.37542353,124130.0,124120.0,0.0227116]
[1759828913101,2.79434353,124130.0,124120.0,0.0227116]
[1759828914206,2.79434652,124130.0,124120.0,0.0227116]
[1759828916262,2.14726652,124130.0,124120.0,0.0227116]
[1759828916393,2.79434652,124130.0,124120.0,0.0227116]
[1759828916601,2.80234652,124130.0,124120.0,0.0227116]
[1759828919340,2.80235071,124130.0,124120.0,0.0227116]
[1759828921045,3.30351334,124130.0,124120.0,0.0227116]
[1759828922176,3.30351334,124130.0,124060.0,1.5062669]
[1759828922177,0.16119628,124080.0,124060.0,1.5062669]
[1759828922370,0.47248138,124070.0,124060.0,1.48206769]
[1759828923379,0.47248138,124070.0,124060.0,1.51956576]
[1759828923797,0.47248138,124070.0,124060.0,1.48256576]
[1759828924136,0.47548138,124070.0,124060.0,1.51956576]
[1759828924484,0.47748138,124070.0,124060.0,1.51956576]
[1759828925488,0.31628206,124070.0,124060.0,1.51956576]
[1759828927461,0.47748138,124070.0,124060.0,1.51956576]
[1759828927669,0.5430417,124070.0,124060.0,1.35840071]
[1759828928740,0.47748138,124070.0,124060.0,1.35840071]
[1759828929084,0.47748138,124070.0,124060.0,1.35959705]
[1759828929549,0.47548138,124070.0,124060.0,1.35959705]
[1759828929958,0.47748138,124070.0,124060.0,1.35959705]
[1759828930160,0.47448138,124070.0,124060.0,1.32259705]
[1759828930583,0.47648138,124070.0,124060.0,1.34359705]
[1759828933579,0.08712206,124070.0,124060.0,1.50480936]
[1759828933794,0.47648138,124070.0,124060.0,1.50480936]
[1759828939398,0.49471285,124070.0,124060.0,1.50480936]
[1759828939605,0.47648138,124070.0,124060.0,1.50480936]
[1759828940202,0.47652138,124070.0,124060.0,1.50480936]
[1759828940621,0.08712206,124070.0,124060.0,1.50480936]
[1759828941059,0.23216,124070.0,124060.0,1.50480936]
[1759828941475,0.004,124070.0,124060.0,1.50480936]
[1759828941701,0.004,124070.0,124060.0,1.52900797]
[1759828942897,0.20888,124080.0,124070.0,0.16119932]
[1759828943140,0.34261765,124100.0,124090.0,0.16117334]
[1759828943349,0.65389971,124100.0,124090.0,0.17729067]
[1759828943555,0.65389971,124100.0,124090.0,0.16117334]
[1759828943769,0.65389971,124100.0,124090.0,0.17729067]
[1759828944165,0.10732067,124100.0,124090.0,0.17729067]
[1759828944385,0.31328206,124100.0,124090.0,0.19929067]
[1759828944610,0.31328206,124100.0,124090.0,0.18317334]
[1759828946093,0.004,124100.0,124090.0,0.18317334]
[1759828946724,0.004,124100.0,124090.0,0.19531438]
[1759828946926,0.004,124100.0,124090.0,0.42347438]
[1759828947700,0.004,124100.0,124090.0,0.19531438]
[1759828947898,0.004,124100.0,124090.0,0.42347438]
[1759828948317,0.004,124100.0,124090.0,0.19531438]
[1759828948531,0.004,124100.0,124090.0,0.42347438]
[1759828948840,0.004,124100.0,124090.0,0.42407241]
[1759828949148,0.004,124100.0,124090.0,0.19591241]
[1759828949315,0.004,124100.0,124090.0,0.42407241]
[1759828951455,0.004,124100.0,124090.0,0.22010596]
[1759828951657,0.004,124100.0,124090.0,0.44826596]
[1759828951863,0.004,124100.0,124090.0,0.22010596]
[1759828952244,0.004,124100.0,124090.0,0.44826596]
[1759828952848,0.004,124100.0,124090.0,0.22010596]
[1759828953053,0.004,124100.0,124090.0,0.44826596]
[1759828953501,0.00613,124100.0,124090.0,0.44826596]
[1759828953699,0.004,124100.0,124090.0,0.44826596]
[1759828954574,0.004,124100.0,124090.0,0.22010596]
[1759829001323,0.004,124100.0,124090.0,0.56010596]
[1759829002143,0.01205775,124130.0,124120.0,0.16113438]
[1759829002349,0.09517981,124130.0,124120.0,0.16113438]
[1759829003249,0.0952599,124130.0,124120.0,0.16113438]
[1759829003468,0.0972599,124130.0,124120.0,0.16113438]
[1759829004796,0.2583813,124130.0,124120.0,0.16113438]
[1759829004997,0.2635413,124130.0,124120.0,0.16113438]
[1759829005422,0.2583813,124130.0,124120.0,0.16113438]
[1759829005596,0.2468613,124130.0,124120.0,0.16113438]
[1759829012768,0.2488513,124130.0,124120.0,0.16113438]
[1759829012964,0.2520813,124130.0,124120.0,0.16113438]
[1759829013273,0.2468613,124130.0,124120.0,0.16113438]
[1759829014421,0.2488513,124130.0,124120.0,0.16113438]
[1759829014544,0.2520813,124130.0,124120.0,0.16113438]
[1759829014973,0.2468613,124130.0,124120.0,0.16113438]
[1759829015847,0.16113438,124120.0,124110.0,0.02438925]
[1759829016059,0.47548644,124120.0,124110.0,0.16134434]
[1759829016270,0.47747644,124120.0,124110.0,0.16134434]
[1759829017516,0.47225644,124120.0,124110.0,0.16134434]
[1759829017717,0.31112206,124120.0,124110.0,0.16334434]
[1759829017914,0.47225644,124120.0,124110.0,0.16334434]
[1759829018119,0.47425644,124120.0,124110.0,0.16434434]
[1759829018937,0.47937644,124120.0,124110.0,0.16434667]
[1759829019137,1.04472241,124120.0,124110.0,0.00319931]
[1759829019551,1.04272241,124120.0,124110.0,0.00219931]
[1759829020090,1.04472241,124120.0,124110.0,0.00219931]
[1759829020503,1.04472241,124120.0,124110.0,0.00019931]
[1759829020722,1.12848241,124120.0,124110.0,0.00019931]
[1759829021418,2.36053765,124120.0,124110.0,0.00019931]
[1759829021811,2.38473634,124120.0,124110.0,0.00019931]
[1759829022446,2.38273634,124120.0,124110.0,0.00019931]
[1759829022852,2.39673634,124120.0,124110.0,0.00019931]
[1759829023509,2.31297634,124120.0,124110.0,0.00019931]
[1759829023717,2.42173634,124120.0,124110.0,0.00019931]
[1759829024125,2.47010634,124120.0,124110.0,0.00019931]
[1759829024565,2.16934634,124120.0,124110.0,0.00019931]
[1759829024687,2.81622634,124120.0,124110.0,0.00019931]
[1759829026352,0.16118633,124080.0,124070.0,0.16119891]
[1759829026664,0.31112206,124080.0,124070.0,0.16119891]
[1759829026813,0.31112206,124080.0,124070.0,0.16199644]
[1759829027407,0.47230839,124080.0,124070.0,0.16199644]
[1759829027613,0.47230839,124080.0,124070.0,0.17499644]
[1759829027614,0.47238844,124080.0,124070.0,0.17499644]
[1759829028180,0.47438844,124080.0,124070.0,0.17499644]
[1759829031039,0.31320211,124080.0,124070.0,0.17499644]
[1759829031433,0.47438844,124080.0,124070.0,0.17499644]
[1759829031952,0.31324211,124080.0,124070.0,0.17499644]
[1759829032374,0.08520211,124080.0,124070.0,0.17499644]
[1759829032892,0.31324211,124080.0,124070.0,0.17499644]
[1759829033261,0.47442844,124080.0,124070.0,0.17499644]
[1759829033993,0.31324211,124080.0,124070.0,0.17499644]
[1759829034207,0.08520211,124080.0,124070.0,0.17499644]
[1759829034410,0.00208005,124080.0,124070.0,0.17499644]
[1759829034990,0.00208005,124080.0,124070.0,0.19919353]
[1759829037750,0.00208005,124080.0,124070.0,0.53919353]
[1759829047537,0.00408005,124080.0,124070.0,0.76719353]
[1759829048025,0.00208005,124080.0,124070.0,0.76719353]
[1759829051082,0.00208005,124080.0,124070.0,0.53919353]
[1759829051284,0.00408005,124080.0,124070.0,0.76719353]
[1759829052021,0.00208005,124080.0,124070.0,0.76719353]
[1759829053251,0.00208005,124080.0,124070.0,0.74299644]
[1759829056821,0.00408005,124080.0,124070.0,0.74299644]
[1759829057011,0.00720005,124080.0,124070.0,0.74299644]
[1759829057216,0.00208005,124080.0,124070.0,0.74299644]
[1759829065135,0.00208005,124080.0,124070.0,0.76719312]
[1759829070590,0.00208005,124080.0,124070.0,0.85031518]
[1759829070792,0.00208005,124080.0,124070.0,0.92230812]
[1759829071424,8.005e-05,124080.0,124070.0,0.92230812]
[1759829072619,8.005e-05,124080.0,124070.0,0.90930812]
[1759829072820,0.00208005,124080.0,124070.0,0.93130812]
[1759829074512,0.00208005,124080.0,124070.0,0.96146002]
[1759829074764,0.00208005,124080.0,124070.0,0.88946708]
[1759829076634,0.00208005,124080.0,124070.0,0.66146708]
[1759829076835,0.00208005,124080.0,124070.0,0.97314708]
[1759829078188,0.00208005,124080.0,124070.0,1.04507832]
[1759829082781,0.00208005,124080.0,124070.0,0.73339832]
[1759829083002,0.00208005,124080.0,124070.0,1.04507832]
[1759829083218,0.00208005,124080.0,124070.0,0.73339832]
[1759829083429,0.00208005,124080.0,124070.0,1.04507832]
[1759829088328,0.00208005,124080.0,124070.0,0.96131832]
[1759829088536,0.00208005,124080.0,124070.0,1.04507832]
[1759829099165,0.00208005,124080.0,124070.0,0.97314708]
[1759829100903,0.00418005,124080.0,124070.0,0.97314708]
[1759829101317,0.00208005,124080.0,124070.0,0.97314708]
[1759829101727,0.00736005,124080.0,124070.0,0.931895]
[1759829102018,0.00736005,124080.0,124070.0,0.9620469]
[1759829103084,0.00736005,124080.0,124070.0,0.6504069]
[1759829103203,0.00736005,124080.0,124070.0,0.9620469]
[1759829103403,0.00420005,124080.0,124070.0,0.9620469]
[1759829103856,0.00208005,124080.0,124070.0,0.9620469]
[1759829107506,0.00736005,124080.0,124070.0,0.9620469]
[1759829107703,0.00420005,124080.0,124070.0,0.9620469]
[1759829107991,0.00208005,124080.0,124070.0,0.9620469]
[1759829113047,0.00208005,124080.0,124070.0,0.9620069]
[1759829114011,0.00736005,124080.0,124070.0,0.6504069]
[1759829114226,0.00736005,124080.0,124070.0,0.9620069]
[1759829114667,0.00420005,124080.0,124070.0,0.9620069]
[1759829114888,0.00208005,124080.0,124070.0,0.9620069]
[1759829115834,0.00420005,124080.0,124070.0,0.9620069]
[1759829116138,0.00736005,124080.0,124070.0,0.8782469]
[1759829117965,0.00208005,124080.0,124070.0,0.8782469]
[1759829119008,0.00420005,124080.0,124070.0,0.8782469]
[1759829119943,0.00208005,124080.0,124070.0,0.8782469]
[1759829121941,0.00208005,124080.0,124070.0,0.9620069]
[1759829123345,0.00208005,124080.0,124070.0,0.6504069]
[1759829123508,0.00208005,124080.0,124070.0,0.9620069]
[1759829123706,0.00208005,124080.0,124070.0,0.6504069]
[1759829123912,0.00420005,124080.0,124070.0,0.9620069]
[1759829124142,0.00208005,124080.0,124070.0,0.9620069]
[1759829124347,0.00420005,124080.0,124070.0,0.9620069]
[1759829124864,0.00208005,124080.0,124070.0,0.9620069]
[1759829125211,0.00208005,124080.0,124070.0,0.6504069]
[1759829125423,0.00208005,124080.0,124070.0,0.9620069]
[1759829128844,0.00420005,124080.0,124070.0,0.9620069]
[1759829129024,0.00208005,124080.0,124070.0,0.9620069]
[1759829129754,0.00208005,124080.0,124070.0,0.9619669]
[1759829130142,0.00736005,124080.0,124070.0,0.9619669]
[1759829130319,0.00420005,124080.0,124070.0,0.9619669]
[1759829130533,0.00208005,124080.0,124070.0,0.9619669]
[1759829133068,0.00711005,124080.0,124070.0,0.9619669]
[1759829133278,0.00407005,124080.0,124070.0,0.9619669]
[1759829133494,0.00711005,124080.0,124070.0,0.9619669]
[1759829133714,0.00711005,124080.0,124070.0,0.620255]
[1759829134093,0.00711005,124080.0,124070.0,0.77599312]
[1759829134742,0.00208005,124080.0,124070.0,0.77599312]
[1759829138018,0.00422005,124080.0,124070.0,0.77599312]
[1759829138308,0.00208005,124080.0,124070.0,0.77599312]
[1759829138523,0.00746005,124080.0,124070.0,0.77599312]
[1759829139142,0.00422005,124080.0,124070.0,0.77599312]
[1759829139839,0.00208005,124080.0,124070.0,0.77599312]
[1759829140264,0.00422005,124080.0,124070.0,0.77599312]
[1759829140664,0.00746005,124080.0,124070.0,0.77599312]
[1759829148212,0.16864638,124080.0,124070.0,0.20819353]
[1759829148478,0.16864638,124080.0,124070.0,0.41179685]
[1759829148695,0.00746005,124080.0,124070.0,0.41179685]
[1759829150857,0.00208005,124080.0,124070.0,0.41179685]
[1759829151078,0.00208005,124080.0,124070.0,0.43599331]
[1759829151677,0.00208005,124080.0,124070.0,0.25199646]
[1759829152008,0.00208005,124080.0,124070.0,0.41319578]
[1759829154581,0.00208005,124080.0,124070.0,0.78334768]
[1759829156299,0.00208005,124080.0,124070.0,0.86646974]
[1759829158227,0.00208005,124080.0,124070.0,0.89184769]
[1759829162531,0.06536749,124110.0,124100.0,0.19131225]
[1759829162752,0.06536749,124110.0,124100.0,0.41922159]
[1759829163262,0.06536749,124110.0,124100.0,0.44341153]
[1759829164259,0.16437198,124130.0,124120.0,0.16113438]
[1759829164495,0.24966404,124130.0,124120.0,0.16113438]
[1759829164712,0.08854206,124130.0,124120.0,0.16113438]
[1759829164954,0.08529206,124130.0,124120.0,0.17724781]
[1759829165205,0.08529206,124130.0,124120.0,0.16113438]
[1759829165462,0.24641346,124130.0,124120.0,0.16113438]
[1759829165659,0.24966346,124130.0,124120.0,0.16113438]
[1759829166392,0.25766346,124130.0,124120.0,0.16113438]
[1759829167195,0.25866346,124130.0,124120.0,0.16413438]
[1759829167407,0.25866346,124130.0,124120.0,0.17397507]
[1759829169248,0.09754206,124130.0,124120.0,0.17397507]
[1759829169471,0.25866346,124130.0,124120.0,0.17397507]
[1759829169700,0.26019784,124130.0,124120.0,0.17397507]
[1759829170052,0.09907644,124130.0,124120.0,0.17397507]
[1759829170735,0.01053438,124130.0,124120.0,0.40169507]
[1759829171169,0.00632735,124130.0,124120.0,0.40169507]
[1759829171428,0.00632735,124130.0,124120.0,0.42588228]
[1759829173515,0.00632735,124130.0,124120.0,0.76588228]
[1759829174865,0.00632735,124130.0,124120.0,0.79603418]
[1759829180824,0.00632735,124130.0,124120.0,0.56831418]
[1759829181064,0.00632735,124130.0,124120.0,0.79599418]
[1759829182741,0.01174735,124130.0,124120.0,0.79599418]
[1759829182936,0.01174735,124130.0,124120.0,0.56831418]
[1759829183137,0.01174735,124130.0,124120.0,0.79599418]
[1759829183483,0.00849735,124130.0,124120.0,0.79599418]
[1759829184234,0.00849735,124130.0,124120.0,0.56831418]
[1759829184431,0.00849735,124130.0,124120.0,0.79599418]
[1759829184639,0.01174735,124130.0,124120.0,0.79599418]
[1759829187111,0.00632735,124130.0,124120.0,0.79599418]
[1759829191221,0.00632735,124130.0,124120.0,0.76584228]
[1759829191873,0.00844735,124130.0,124120.0,0.76584228]
[1759829192081,0.00632735,124130.0,124120.0,0.76584228]
[1759829192844,0.00844735,124130.0,124120.0,0.76584228]
[1759829193050,0.00632735,124130.0,124120.0,0.76584228]
[1759829193472,0.01160735,124130.0,124120.0,0.76584228]
[1759829196860,0.01160735,124130.0,124120.0,0.76580228]
[1759829197246,0.00844735,124130.0,124120.0,0.76580228]
[1759829201342,0.00632735,124130.0,124120.0,0.76580228]
[1759829210468,0.00632735,124130.0,124120.0,0.53816228]
[1759829210677,0.01137735,124130.0,124120.0,0.76576228]
[1759829211064,0.00831735,124130.0,124120.0,0.76576228]
[1759829211293,0.00831735,124130.0,124120.0,0.53816228]
[1759829211539,0.01137735,124130.0,124120.0,0.76576228]
[1759829211953,0.00831735,124130.0,124120.0,0.76576228]
[1759829212145,0.00632735,124130.0,124120.0,0.76576228]
[1759829214035,0.00831735,124130.0,124120.0,0.76576228]
[1759829215529,0.00632735,124130.0,124120.0,0.76576228]
[1759829219961,0.01137735,124130.0,124120.0,0.53816228]
[1759829220118,0.01137735,124130.0,124120.0,0.76576228]
[1759829220549,0.00831735,124130.0,124120.0,0.76576228]
[1759829220755,0.00632735,124130.0,124120.0,0.76576228]
[1759829221795,0.00833735,124130.0,124120.0,0.76576228]
[1759829223573,0.00632735,124130.0,124120.0,0.76576228]
[1759829224185,0.00833735,124130.0,124120.0,0.76576228]
[1759829225590,0.00632735,124130.0,124120.0,0.76576228]
[1759829231298,0.00833735,124130.0,124120.0,0.76576228]
[1759829231544,0.01154735,124130.0,124120.0,0.76576228]
[1759829231715,0.01154735,124130.0,124120.0,0.53816228]
[1759829231916,0.01154735,124130.0,124120.0,0.76572228]
[1759829233514,0.00833735,124130.0,124120.0,0.76572228]
[1759829238421,0.00632735,124130.0,124120.0,0.76572228]
[1759829240824,0.00833735,124130.0,124120.0,0.76572228]
[1759829245593,0.01154735,124130.0,124120.0,0.76572228]
[1759829246255,0.01154735,124130.0,124120.0,0.42568228]
[1759829248778,0.00833735,124130.0,124120.0,0.42568228]
[1759829249339,0.00632735,124130.0,124120.0,0.42568228]
[1759829249949,0.00833735,124130.0,124120.0,0.42568228]
[1759829251797,0.01149735,124130.0,124120.0,0.19816228]
[1759829251958,0.01149735,124130.0,124120.0,0.42568228]
[1759829255715,0.00833735,124130.0,124120.0,0.42568228]
[1759829255892,0.00632735,124130.0,124120.0,0.42568228]
[1759829262749,0.00632735,124130.0,124120.0,0.42564228]
[1759829266210,0.1294196,124140.0,124130.0,0.1611214]
[1759829266407,0.21254166,124140.0,124130.0,0.1611214]
[1759829266609,0.21450166,124140.0,124130.0,0.1611214]
[1759829266845,0.21470091,124140.0,124130.0,0.18530918]
[1759829267639,0.21970091,124140.0,124130.0,0.18630918]
[1759829268195,0.23470091,124140.0,124130.0,0.18630918]
[1759829269792,0.26939973,124140.0,124130.0,0.18630918]
[1759829272430,0.02019925,124140.0,124130.0,0.21646108]
[1759829272631,0.02019925,124140.0,124130.0,0.63958314]
[1759829272856,0.02019925,124140.0,124130.0,0.71160438]
[1759829273826,0.02019925,124140.0,124130.0,0.93908438]
[1759829274054,0.00019925,124140.0,124130.0,1.02180438]
[1759829274353,0.00219925,124140.0,124130.0,0.96078314]
[1759829276334,0.00219925,124140.0,124130.0,1.03280438]
[1759829277186,0.00219925,124140.0,124130.0,0.72160438]
[1759829277391,0.00219925,124140.0,124130.0,1.03276438]
[1759829279332,0.00219925,124140.0,124130.0,0.96074314]
[1759829279767,0.00219925,124140.0,124130.0,0.64958314]
[1759829279940,0.00219925,124140.0,124130.0,0.96074314]
[1759829281861,0.00219925,124140.0,124130.0,0.87702314]
[1759829282101,0.00219925,124140.0,124130.0,0.96074314]
[1759829282848,0.00219925,124140.0,124130.0,0.64958314]
[1759829283099,0.00219925,124140.0,124130.0,0.96074314]
[1759829284849,0.00219925,124140.0,124130.0,0.96070314]
[1759829286078,0.00219925,124140.0,124130.0,0.64958314]
[1759829286288,0.00219925,124140.0,124130.0,0.96070314]
[1759829288757,0.00219925,124140.0,124130.0,0.78176707]
[1759829288934,0.00219925,124140.0,124130.0,0.94288847]
[1759829291943,0.00219925,124140.0,124130.0,0.63176847]
[1759829292166,0.00219925,124140.0,124130.0,0.94288847]
[1759829297698,0.00219925,124140.0,124130.0,0.63176847]
[1759829297901,0.00219925,124140.0,124130.0,0.94284847]
[1759829298356,0.00219925,124140.0,124130.0,0.63176847]
[1759829298571,0.00219925,124140.0,124130.0,0.94284847]
[1759829298883,0.00219925,124140.0,124130.0,1.01486971]
[1759829299738,0.00219925,124140.0,124130.0,0.70378971]
[1759829300036,0.00219925,124140.0,124130.0,1.01486971]
[1759829302166,0.00219925,124140.0,124130.0,0.94284847]
[1759829303222,0.00219925,124140.0,124130.0,0.63176847]
[1759829303440,0.00741925,124140.0,124130.0,0.94284847]
[1759829303809,0.00219925,124140.0,124130.0,0.94284847]
[1759829304429,0.00741925,124140.0,124130.0,0.63236641]
[1759829304628,0.00741925,124140.0,124130.0,0.47157224]
[1759829304828,0.00741925,124140.0,124130.0,0.4296333]
[1759829305232,0.00741925,124140.0,124130.0,0.4236333]
[1759829305425,0.00541925,124140.0,124130.0,0.4186333]
[1759829305625,0.00641925,124140.0,124130.0,0.1952733]
[1759829305820,0.00641925,124140.0,124130.0,0.4226333]
[1759829307619,0.00641925,124140.0,124130.0,0.2615119]
[1759829308247,0.16752767,124140.0,124130.0,0.2615119]
[1759829308420,0.23613439,124140.0,124130.0,0.2615119]
[1759829308624,0.23613439,124140.0,124130.0,0.0341519]
[1759829308823,0.23613439,124140.0,124130.0,0.2615119]
[1759829309977,0.23613439,124140.0,124130.0,0.004]
[1759829310179,0.73684247,124140.0,124130.0,0.23136]
[1759829310420,0.23613439,124140.0,124130.0,0.23136]
[1759829311871,0.31925645,124140.0,124130.0,0.23136]
[1759829313236,0.81996453,124140.0,124130.0,0.23136]
[1759829314397,0.31925645,124140.0,124130.0,0.23136]
[1759829316896,0.25064973,124140.0,124130.0,0.23136]
[1759829318713,0.75135781,124140.0,124130.0,0.23136]
[1759829318936,0.25064973,124140.0,124130.0,0.23136]
[1759829319345,0.25064973,124140.0,124130.0,0.3924814]
[1759829319563,0.25064973,124140.0,124130.0,0.23136]
[1759829321241,0.25064973,124140.0,124130.0,0.004]
[1759829322933,0.30139327,124140.0,124130.0,0.004]
[1759829324726,0.25064973,124140.0,124130.0,0.004]
[1759829324965,0.75135781,124140.0,124130.0,0.004]
[1759829326074,0.97871781,124140.0,124130.0,0.004]
[1759829326923,0.47800973,124140.0,124130.0,0.004]
[1759829327131,0.97871781,124140.0,124130.0,0.004]
[1759829327906,1.05871461,124140.0,124130.0,0.004]
[1759829328931,0.55800653,124140.0,124130.0,0.004]
[1759829329133,1.05871461,124140.0,124130.0,0.004]
[1759829331117,0.1611214,124130.0,124120.0,0.16113391]
[1759829331314,0.24949346,124130.0,124120.0,0.16113391]
[1759829333026,0.24949346,124130.0,124120.0,0.16313391]
[1759829333176,0.25149346,124130.0,124120.0,0.16313391]
[1759829333365,0.09037206,124130.0,124120.0,0.16313391]
[1759829333976,0.25149346,124130.0,124120.0,0.16313391]
[1759829335411,0.08512206,124130.0,124120.0,0.16313391]
[1759829336628,0.24624346,124130.0,124120.0,0.16313391]
[1759829336836,0.002,124130.0,124120.0,0.16313391]
[1759829337489,0.002,124130.0,124120.0,0.19328581]
[1759829340491,0.002,124130.0,124120.0,0.53328581]
[1759829340693,0.002,124130.0,124120.0,0.55747078]
[1759829343598,0.002,124130.0,124120.0,0.86855078]
[1759829355498,0.002,124130.0,124120.0,0.55747078]
[1759829355846,0.002,124130.0,124120.0,0.86851078]
[1759829359485,0.002,124130.0,124120.0,0.55747078]
[1759829359690,0.002,124130.0,124120.0,0.86851078]
[1759829360311,0.002,124130.0,124120.0,0.55747078]
[1759829360526,0.002,124130.0,124120.0,0.86851078]
[1759829360946,0.002,124130.0,124120.0,0.55747078]
[1759829361174,0.002,124130.0,124120.0,0.86851078]
[1759829362008,0.002,124130.0,124120.0,0.55747078]
[1759829362258,0.002,124130.0,124120.0,0.86851078]
[1759829362434,0.002,124130.0,124120.0,0.94060162]
[1759829366934,0.002,124130.0,124120.0,0.62956162]
[1759829367340,0.002,124130.0,124120.0,0.85688162]
[1759829367538,0.002,124130.0,124120.0,0.94060162]
[1759829380625,0.002,124130.0,124120.0,0.62956162]
[1759829380844,0.002,124130.0,124120.0,0.94056162]
[1759829384577,0.00703,124130.0,124120.0,0.94056162]
[1759829384997,0.002,124130.0,124120.0,0.94056162]
[1759829388979,0.00404,124130.0,124120.0,0.94056162]
[1759829389339,0.002,124130.0,124120.0,0.94056162]
[1759829393980,0.002,124130.0,124120.0,0.94052162]
[1759829395234,0.002,124130.0,124120.0,0.62952162]
[1759829395468,0.002,124130.0,124120.0,0.94048162]
[1759829396388,0.00703,124130.0,124120.0,0.94048162]
[1759829396904,0.002,124130.0,124120.0,0.94048162]
[1759829399026,0.00703,124130.0,124120.0,0.94048162]
[1759829399541,0.002,124130.0,124120.0,0.94048162]
[1759829400635,0.002,124130.0,124120.0,0.62952162]
[1759829400860,0.00703,124130.0,124120.0,0.94048162]
[1759829401420,0.00404,124130.0,124120.0,0.94048162]
[1759829402235,0.00717,124130.0,124120.0,0.94048162]
[1759829402686,0.00717,124130.0,124120.0,0.85676162]
[1759829402901,0.00717,124130.0,124120.0,0.62952162]
[1759829403254,0.00717,124130.0,124120.0,0.85676162]
[1759829404471,0.00717,124130.0,124120.0,0.62952162]
[1759829404693,0.00692725,124130.0,124120.0,0.85676162]
[1759829405939,0.00379725,124130.0,124120.0,0.85676162]
[1759829407107,0.00692725,124130.0,124120.0,0.85676162]
[1759829407532,0.00379725,124130.0,124120.0,0.85676162]
[1759829407729,0.00175725,124130.0,124120.0,0.85676162]
[1759829410210,0.00175725,124130.0,124120.0,0.93988368]
[1759829410589,0.00019925,124140.0,124130.0,0.1912733]
[1759829410812,0.00019925,124140.0,124130.0,0.34647266]
[1759829411165,0.00019925,124140.0,124130.0,0.27439536]
[1759829411727,0.00019925,124140.0,124130.0,0.30457444]
[1759829412176,0.00019925,124140.0,124130.0,0.37659005]
[1759829412312,0.00019925,124140.0,124130.0,0.68755005]
[1759829412647,0.00219925,124140.0,124130.0,0.68755005]
[1759829415009,0.00219925,124140.0,124130.0,0.60383005]
[1759829415208,0.00219925,124140.0,124130.0,0.68755005]
[1759829417118,0.00219925,124140.0,124130.0,0.37659005]
[1759829417346,0.00219925,124140.0,124130.0,0.68751005]
[1759829417553,0.00219925,124140.0,124130.0,1.02751005]